Cogmind - Beta 10.2 *** ADVENTURER MODE // 2021.06.02 @ 09:13:25 Player: Tuli Result: Destroyed by G-34 Mercenary with Small Laser Performance ------------- Evolutions (1) 500 Regions Visited (2) 400 Robots Destroyed (29) 145 Value Destroyed (527) 527 Prototype IDs (2) 40 Alien Tech Used (0) 0 Bonus (0) 0 TOTAL SCORE: 1612 Bonus ------- None Cogmind --------- Core Integrity 0/400 Matter 300/300 Energy 100/100 System Corruption 2% Temperature Cool (6) Movement Core (300) Ox5 Location -9/Materials Parts ------- > --- POWER (3) -------- (None) > --- PROPULSION (2) --- (None) > --- UTILITY (2) ------ Large Storage Unit > --- WEAPON (2) ------- (None) > --- INVENTORY (10) --- Light Assault Rifle Peak State ------------ > --- POWER ------------ Light Ion Engine Light Ion Engine Improved Ion Engine > --- PROPULSION ------- Wheel Wheel > --- UTILITY ---------- Large Storage Unit Hardened Light Armor Plating > --- WEAPON ----------- Spread Laser Light Cannon > --- INVENTORY -------- Hover Unit [Rating: 12] Favorites ----------- Power Ion Engine Engine Ion Engine Propulsion Wheel Treads Light Treads Wheel Wheel Hover Unit Hover Unit Flight Unit Flight Unit Utility Large Storage Unit Device ECM Suite Storage Large Storage Unit Processor Improved Targeting Computer Protection Hardened Light Armor Plating Weapon Light Cannon Energy Gun Spread Laser Ballistic Gun Light Assault Rifle Ballistic Cannon Light Cannon Launcher Grenade Launcher Special Weapon Welding Torch Special Melee Weapon Datajack Build | -11 -10 -9 ------- Run | Scr Mat Mat Slots Evolved 2 | . . 2 Power 2 | . . 2 Propulsion . | . . . Utility . | . . . Weapon . | . . . Parts Attached 49 | 8 15 26 Power 6 | 1 1 4 Engine 6 | 1 1 4 Core . | . . . Reactor . | . . . Propulsion 16 | 4 4 8 Treads 1 | 1 . . Leg . | . . . Wheel 11 | 3 3 5 Hover 1 | . . 1 Flight 3 | . 1 2 Utility 11 | 1 4 6 Device 1 | . . 1 Storage 5 | 1 3 1 Processor 3 | . 1 2 Hackware . | . . . Protection 2 | . . 2 Artifact . | . . . Weapon 16 | 2 6 8 Energy Gun 3 | . . 3 Energy Cannon . | . . . Ballistic Gun 7 | 2 2 3 Ballistic Cannon 3 | . 2 1 Launcher 1 | . 1 . Special Weapon 1 | . . 1 Impact Weapon . | . . . Slashing Weapon . | . . . Piercing Weapon . | . . . Special Melee Weapon 1 | . 1 . Unidentified Prototypes . | . . . Parts Lost 13 | . 2 11 Power 2 | . . 2 Propulsion 4 | . 1 3 Utility 2 | . . 2 Weapon 5 | . 1 4 Highest Loss Streak 6 | . 1 6 Average Slot Usage (%) 72 | . 75 63 Engine 13 | . 14 11 Wheel 7 | . 4 13 Storage 22 | . 27 11 Energy Gun 1 | . . 3 Ballistic Gun 2 | . 1 5 Ballistic Cannon 19 | . 23 7 Special Melee Weapon 1 | . 1 . Naked Turns . | . . . Heaviest Build 43 | 12 43 40 Greatest Support 26 | 26 20 20 Greatest Overweight (x) 14 | 1 14 9 Average Overweight (x) 3 | . 6 1 Largest Inventory Capacity 16 | 6 16 10 Average Capacity 13 | 5 15 9 Most Carried 4 | 4 4 4 Average Carried . | . . . Final Capacity 10 | 6 10 10 Final Carried 1 | . 1 1 Class Distribution -------------------- 91% | Mutant 8% | Scavenger-Mutant Dominant Class ---------------- Mutant | -10/Materials Mutant | -9/Materials Resources | -11 -10 -9 ----------- Run | Scr Mat Mat Matter Collected 960 | 334 342 284 Remotely . | . . . Salvage Created 693 | 170 187 336 Parts 58 | 10 13 35 Haulers Intercepted . | . . . Recyclers Shooed . | . . . Parts Field Recycled . | . . . Retrieved Matter . | . . . Parts Self-Destructed . | . . . Prevented . | . . . Kills | -11 -10 -9 ------- Run | Scr Mat Mat Combat Hostiles Destroyed 15 | . 5 10 Melee 1 | . . 1 Guns 8 | . 1 7 Cannons 4 | . 2 2 AOE 2 | . 2 . Classes Destroyed 8 | 3 3 2 Worker 2 | 2 . . Builder 2 | . 1 1 Tunneler 4 | 3 1 . Recycler 2 | 1 . 1 Watcher 4 | . 1 3 Swarmer 7 | . . 7 Grunt 5 | . 5 . Sentry 3 | . . 3 Best Kill Streak 5 | 5 3 4 Combat Bots Only 2 | . 2 2 Max Kills in Single Turn 1 | 1 1 1 Gunslinging . | . . . Exploded 1 | . 1 . Melee 1 | . . 1 Uniques/NPCs Destroyed . | . . . Combat | -11 -10 -9 -------- Run | Scr Mat Mat Damage Taken 1568 | . 382 1186 Core 541 | . 138 403 Absorbed by Shields . | . . . Core Remaining (%) 72 | 100 44 . Volleys Fired 114 | 16 39 59 Largest 2 | 2 2 2 Hottest 100 | 40 70 100 Shots Fired 183 | 32 58 93 Gun 112 | 32 17 63 Cannon 66 | . 38 28 Launcher 3 | . 3 . Special 2 | . . 2 Kinetic 156 | 32 55 69 Thermal 24 | . . 24 Explosive 3 | . 3 . Electromagnetic . | . . . Robot Hit Streak 31 | 15 31 17 Robot Miss Streak 8 | 2 3 8 Penetration Max . | . . . Secondary Targets . | . . . Shots Hit Robots 138 | 25 45 68 Core Hits 60 | 9 13 38 Critical Hits 3 | 1 1 1 Critical Kills 1 | . 1 . Critical Parts Destroyed 2 | 1 . 1 Melee Attacks 3 | . 3 . Impact . | . . . Slashing . | . . . Piercing . | . . . Sneak Attacks 2 | . 2 . Combat Hostiles . | . . . Follow-up Attacks . | . . . Damage Inflicted 1862 | 246 782 834 Guns 807 | 246 136 425 Cannons 742 | . 446 296 Explosions 198 | . 198 . Melee . | . . . Ramming 115 | . 2 113 Kinetic 1363 | 246 582 535 Thermal 186 | . . 186 Explosive 198 | . 198 . Electromagnetic . | . . . Impact . | . . . Slashing . | . . . Piercing . | . . . Highest Corruption 2 | . . 2 Average Corruption 2 | . . 2 Corruption Purged . | . . . Effects 1 | . . 1 Message Errors 1 | . . 1 Overload Shots . | . . . Overflow Damage 20 | . 18 2 Projectiles 18 | . 18 . Explosions . | . . . Melee 2 | . . 2 Knockbacks 5 | . 5 . Impact . | . . . Kinetic 5 | . 5 . Secondary . | . . . Self-Inflicted Damage 45 | . 1 44 Shots . | . . . Rammed 42 | . 1 41 Targets Rammed 42 | . 1 41 Kicked . | . . . Crushed . | . . . Highest Temperature 389 | . 99 389 Average Temperature 102 | . 26 134 Received Heat Transfer 375 | . 282 93 Effects 3 | . . 3 Shutdowns 1 | . . 1 Energy Bleed 1 | . . 1 Damage (minor) 1 | . . 1 Siege Activations . | . . . Robots Corrupted . | . . . Combat Hostiles . | . . . Parts Fried . | . . . Impact Corruptions 1 | . . 1 Robots Melted . | . . . Combat Hostiles . | . . . Parts Melted . | . . . Heat Transferred 310 | . . 310 Parts Sabotaged . | . . . Parts Stolen . | . . . Parts Stripped . | . . . Power Chain Reactions . | . . . Missiles Intercepted . | . . . Alert | -11 -10 -9 ------- Run | Scr Mat Mat Peak Influence 339 | 30 157 339 Initial 16 | . 16 . Average 32 | 11 12 95 Maximum Alert Level 1 | . . 1 Low Security (%) 96 | 100 100 86 Level 1 3 | . . 13 Level 2 . | . . . Level 3 . | . . . Level 4 . | . . . Level 5 . | . . . High Security . | . . . Max Security . | . . . Squads Dispatched 1 | . . 1 Investigation 1 | . . 1 Extermination . | . . . Reinforcement . | . . . Assault . | . . . Garrison . | . . . Intercept . | . . . Construction Impeded . | . . . Haulers Reinforced . | . . . Stealth | -11 -10 -9 --------- Run | Scr Mat Mat Distress Signals 2 | . 1 1 Communications Jammed . | . . . Distress Signals . | . . . Times Spotted 45 | . 15 30 Peak Tracking Total 5 | . 3 5 Tactical Retreats 7 | . . 7 Traps | -11 -10 -9 ------- Run | Scr Mat Mat Traps Triggered 6 | . 2 4 Indirectly . | . . . Trap Hack Attempts . | . . . Triggered . | . . . Disarmed . | . . . Reprogrammed . | . . . Reused . | . . . Traps Extracted . | . . . Installed . | . . . Triggered . | . . . Machines | -11 -10 -9 ---------- Run | Scr Mat Mat Machines Disabled 1 | . 1 . Max in Single Turn 1 | . 1 . Machines Sabotaged . | . . . Garrisons Compromised . | . . . Overloaded Fab Kills . | . . . Fab Network Shutdowns . | . . . Hacking | -11 -10 -9 --------- Run | Scr Mat Mat Machines Accessed 9 | . 3 6 Terminals 6 | . 2 4 Fabricators . | . . . Repair Stations . | . . . Recycling Units 2 | . 1 1 Scanalyzers 1 | . . 1 Garrison Access . | . . . Total Hacks 26 | . 4 22 Successful 20 | . 2 18 Failed 6 | . 2 4 Catastrophic . | . . . Database Lockouts . | . . . Manual . | . . . Terminals 15 | . 3 12 Fabricators . | . . . Repair Stations . | . . . Recycling Units 7 | . 1 6 Scanalyzers 4 | . . 4 Garrison Access . | . . . Terminal Hacks 11 | . 2 9 Record 6 | . . 6 Prototype ID Bank 1 | . . 1 Branch Access Points 1 | . . 1 Alert Level 1 | . 1 . Assault Status 1 | . . 1 Zone Layout 1 | . 1 . Fabricator Hacks . | . . . Repair Station Hacks . | . . . Recycling Unit Hacks 5 | . . 5 Recycle Component 1 | . . 1 Process 1 | . . 1 Report Inventory 1 | . . 1 Retrieve Matter 1 | . . 1 Retrieve Components 1 | . . 1 Scanalyzer 4 | . . 4 Insert Component 2 | . . 2 Analyze 2 | . . 2 Garrison Access Hacks . | . . . Unauthorized Hacks . | . . . Terminals . | . . . Fabricators . | . . . Repair Stations . | . . . Recycling Units . | . . . Scanalyzers . | . . . Garrison Access . | . . . Data Cores Recovered . | . . . Used . | . . . Hacking Detections 2 | . . 2 Full Trace Events 2 | . . 2 Feedback Events . | . . . Feedback Blocked . | . . . Robot Schematics Acquired . | . . . Robots Built . | . . . Matter . | . . . Time . | . . . Total Robot Build Rating . | . . . Part Schematics Acquired 2 | . . 2 Parts Built . | . . . Matter . | . . . Time . | . . . Total Part Build Rating . | . . . Parts Repaired . | . . . Time . | . . . Parts Recycled 1 | . . 1 Recycled Matter 48 | . . 48 Retrieved Matter 48 | . . 48 Retrieved Components . | . . . Parts Scanalyzed 2 | . . 2 Part Schematics Acquired 2 | . . 2 Parts Damaged . | . . . Bothacking | -11 -10 -9 ------------ Run | Scr Mat Mat Used RIF Installer . | . . . Robots Hacked 2 | . 2 . Non-combat 1 | . 1 . Combat 1 | . 1 . Robot Hacks Applied 3 | . 3 . parse_system 2 | . 2 . no_distress 1 | . 1 . Relay Couplers Released . | . . . Robots Rewired . | . . . Allies Hacked . | . . . Hacks Repelled . | . . . Allies | -11 -10 -9 -------- Run | Scr Mat Mat Total Allies . | . . . Largest Group . | . . . Highest-Rated Group . | . . . Highest-Rated Ally . | . . . Total Orders . | . . . Ally Attacks . | . . . Total Damage . | . . . Kills . | . . . Allies Corrupted . | . . . Allies Melted . | . . . Intel | -11 -10 -9 ------- Run | Scr Mat Mat Robot Analysis Total . | . . . Derelict Logs Recovered . | . . . Drone Launches . | . . . Drone Recoveries . | . . . Exploration | -11 -10 -9 ------------- Run | Scr Mat Mat Turns Passed 3535 | 265 2409 861 Spaces Moved 1401 | 243 662 496 Core 313 | 44 242 27 Treads 4 | 4 . . Legs . | . . . Wheels 1065 | 195 416 454 Hover . | . . . Flight 19 | . 4 15 Fastest Speed 50 | 50 80 80 Average Speed 214 | 82 339 111 Slowest Speed 840 | 160 840 500 Overloaded Moves . | . . . Propulsion Burnouts . | . . . Robots Hopped . | . . . Cave-ins Triggered . | . . . Exploration Rate (%) 32 | 7 60 29 Regions Visited 2 Branch Regions . Pre-discovered Areas . | . . . Known Exits Taken . | . . . Unknown Exits Taken 2 | 1 1 . Scrap Searched . | . . . Spaces Dug . | . . . Terrain Destroyed 13 | . 13 . Melee . | . . . Projectile . | . . . AOE 13 | . 13 . Terrain Rammed . | . . . Walls Destroyed . | . . . Machines Disabled . | . . . Actions | -11 -10 -9 --------- Run | Scr Mat Mat Total 1700 | 279 761 660 Wait 15 | . 15 . Move 1399 | 242 661 496 Hop . | . . . Pick Up 49 | 9 16 24 Fast Attach 1 | 1 . . Attach 33 | 6 8 19 Detach 3 | . 1 2 Swap 15 | 1 7 7 Drop 26 | 4 10 12 Fire 114 | 16 39 59 Melee 3 | . 3 . Ram 42 | . 1 41 Kick . | . . . Crush . | . . . Escape Stasis . | . . . Rewire . | . . . Trap . | . . . Miscellaneous . | . . . Route ------- -11/Scrapyard -10/Materials -9/Materials (discovered 2 exits: [*Mat] / Min) History --------- Turn | Location | Event 2 | -11/Scrapyard | Met Revision 17 27 | -11/Scrapyard | Discovered new exit (range 16) 266 | -11/Scrapyard | Entered Materials 306 | -10/Materials | Build established: Mutant 621 | -10/Materials | Core integrity fell below 50% 1812 | -10/Materials | Discovered new exit (range 15) 2675 | -10/Materials | Entered another Materials area 2675 | -9/Materials | Evolved 2 slots: Power x2 2709 | -9/Materials | Identified exit to Mines 2921 | -9/Materials | Discovered new exit (range 11) 3225 | -9/Materials | Lost 6 parts (1p2n1u2w) 3475 | -9/Materials | Core integrity fell below 50% 3490 | -9/Materials | Lost 4 parts (1p1n2w) 3524 | -9/Materials | Core integrity fell below 20% 3536 | -9/Materials | Destroyed by G-34 Mercenary with Small Laser Last Messages --------------- Particle Gun destroyed. Slammed into S-10 Pest. Acquired 12 matter. Slammed into S-10 Pest. Lgt. Ion Engine destroyed. S-10 Pest destroyed. K-01 Serf collects debris. Lgt. Assault Rifle destroyed. K-01 Serf collects debris. Slammed into S-10 Pest. K-01 Serf collects debris. Slammed into S-10 Pest. Destabilizing: System corrupted (+2). K-01 Serf collects debris. Slammed into S-10 Pest. ECM Suite permanently disabled. Destabilizing: Short circuit. Slammed into S-10 Pest. IQF2N2SMESWN=RVLSN%E1&I Broken ECM Suite destroyed. Map ----- +----------------------------------------------------+ | ???????????????????????????????????????? ????? | | ???????????????????????????????????????? ????? | | ???????????????????????????????????????? ????? | | ???????????????????????????????????????? ????? | | ???????????????????????????????????????? ????? | | ?????????????????????????????????????????????????? | | ?????????????????????????????????????????????????? | | ?????????????????????????????????????????????????? | | ?????????????????????????????????????????????????? | | ?????????????????????????????????????????????????? | | ???????????????????????????????????????????????### | | ???????????????????????????????????????????????# | | ?????????????????####+#######+#????????????????# | | ?????????????????# #????????????????# | | ?????????????????# #????????????????# " | | ?????????????????# !! #????????????????# " | | ?????????????????# !! #????????????????# " | | ?????????????????# ! #????????????????# | | ???????????????#########+######????????????????# | | ???????????????# #????????????????????### | | ???????????????# t ######################## | | ???????????????# %%% =!! *!= * | | ???????????????# ###/########################### | | ???????????????# ??#%g=g==##????????????????????# | | ???????????????# ???#[%[s![%#????????????????????# | | ????????????????????#%!*%@[##????????????????????# | | ????????????????????#%!*%% #?????????????????????? | | ????????????????????#%*%% #?????????????????????? | | ????????????????????#% #?????????????????????? | | ????????????????????########?????????????????????? | | ?????????????????????????????????????????????????? | | ?????????????????????????????????????????????????? | | ?????????????????????????????????????????????????? | | ?????????????????????????????????????????????????? | | ?????????????????????????????????????????????????? | | ?????????????????????????????????????????????????? | | ?????????????????????????????????????????????????? | | ?????????????????????????????????????????????????? | | ?????????????????????????????????????????????????? | | ?????????????????????????????????????????????????? | | ?????????????????????????????????????????????????? | | ?????????????????????????????????????????????????? | | ?????????????????????????????????????????????????? | | ?????????????????????????????????????????????????? | | ?????????????????????????????????????????????????? | | ?????????????????????????????????????????????????? | | ?????????????????????????????????????????????????? | | ?????????????????????????????????????????????????? | | ?????????????????????????????????????????????????? | | ?????????????????????????????????????????????????? | +----------------------------------------------------+ Best States ------------- Heat Dissipation 28 Energy Generation 17 Energy Capacity 290 Matter Stores 300 Matter Capacity 300 Sight Range 16 Terrain Scan Density 85 ECM Strength 1 Armor Coverage 150 Resistance: KI 20 Resistance: TH 20 Resistance: EX 20 Resistance: EM 20 Resistance: I 20 Resistance: S 20 Resistance: P 20 Evasion (%) 50 Targeting Accuracy 6 Offensive Hacking 10 Item Schematics ----------------- Heat Sink | -9/Materials | Scanalyzed Hrd. Light Armor Plating | -9/Materials | Scanalyzed Robot Schematics ------------------ None Fabricated ------------ Nothing Alien Tech Used ----------------- None Achievements -------------- None Challenges ------------ None Game ------ Seed RefineryFireFilter Manual? 0 Play Time 00:32:45 Cumulative 1.1 hours Start 2021.06.02 @ 08:40:50 End 2021.06.02 @ 09:13:25 Sessions 1 Manual Loads 0 Difficulty Adventurer Special Mode None Game No. 4 Rogue 3 Adventurer 1 Explorer 0 Win Type - Total 0 Types 0/0/0/0/0/0/0/0/0 Lore% 1 Gallery% 4 Achievement% 2 Wizard Run 0 Options --------- ASCII 0 Keyboard 0 Movement Arrows Keybinds 0 Fullscreen 1 Font 18/SmallcapsGlow Map View 76x50 Tactical HUD 0 Map Filters NONE Filters NONE Steam 1 RUN: 6cabb957-03db-4500-9c7b-b2511f140d72